bitfinex/quotes_BTCUSD_20220201
["timestamp","ask_amount","ask_price","bid_price","bid_amount"]
[1643754954252,0.62563746,38677.0,38670.0,0.0008]
[1643754954453,0.62563746,38677.0,38667.0,0.0011]
[1643754954653,0.1153,38676.0,38667.0,0.0011]
[1643754954857,0.62563746,38675.0,38667.0,0.0001]
[1643754955053,0.62563746,38675.0,38662.0,0.0184]
[1643754955253,0.62563746,38675.0,38670.0,5.06e-06]
[1643754955461,0.06466,38671.0,38661.0,0.0011]
[1643754955654,0.06466,38671.0,38658.0,0.0178]
[1643754955655,1.365,38669.0,38658.0,0.0178]
[1643754955854,1.365,38669.0,38656.0,0.0011]
[1643754955855,2.19042324,38666.0,38656.0,0.0011]
[1643754956055,0.05,38664.0,38656.0,0.0003]
[1643754956330,0.6314984,38663.0,38652.0,0.0011]
[1643754956526,1.365,38661.0,38645.0,0.130445]
[1643754956731,1.99063746,38660.0,38653.0,0.010345]
[1643754957028,1.99063746,38660.0,38645.0,0.130445]
[1643754957224,1.99063746,38660.0,38642.0,0.0011]
[1643754957225,1.365,38658.0,38639.0,0.0494]
[1643754957428,0.064687,38656.0,38651.0,0.002]
[1643754957626,0.064687,38656.0,38639.0,0.0494]
[1643754957627,1.365,38654.0,38639.0,0.0494]
[1643754957825,0.62563746,38653.0,38639.0,0.0494]
[1643754958023,0.09689807,38652.0,38634.0,0.181188]
[1643754958224,0.38046633,38651.0,38641.0,0.01663373]
[1643754958426,0.44166677,38650.0,38641.0,0.01663373]
[1643754958624,0.27841746,38649.0,38641.0,0.01663373]
[1643754958823,0.34722,38648.0,38641.0,0.01663373]
[1643754959027,0.34722,38648.0,38631.0,0.05]
[1643754959028,1.85865858,38642.0,38631.0,0.05]
[1643754959226,1.365,38640.0,38631.0,0.045]
[1643754959430,1.365,38640.0,38627.0,0.0011]
[1643754959431,0.7260815,38639.0,38627.0,0.0011]
[1643754959625,0.0963699,38637.0,38627.0,0.0011]
[1643754959824,2.38263746,38639.0,38627.0,0.0011]
[1643754959825,0.09429824,38635.0,38627.0,0.0011]
[1643754960062,1.365,38633.0,38630.0,0.00141958]
[1643754960253,0.62563746,38634.0,38626.0,1.1381599]
[1643754960254,0.1,38631.0,38626.0,1.09187948]
[1643754960456,0.05,38629.0,38625.0,0.01]
[1643754960754,0.098,38627.0,38621.0,0.02575183]
[1643754960954,0.27841746,38626.0,38621.0,0.02575183]
[1643754961156,0.09881023,38625.0,38621.0,0.02575183]
[1643754961357,0.38391983,38624.0,38611.0,0.05]
[1643754961663,0.10347698,38614.0,38605.0,0.020039]
[1643754961856,0.34492895,38613.0,38605.0,0.020039]
[1643754962063,0.00586867,38611.0,38605.0,0.020039]
[1643754962257,0.00586867,38611.0,38605.0,0.015039]
[1643754962258,0.34222,38610.0,38605.0,0.015039]
[1643754962459,0.27841746,38609.0,38605.0,0.015039]
[1643754962658,0.4397076,38608.0,38601.0,0.0111]
[1643754962858,0.10405927,38606.0,38601.0,0.0111]
[1643754963056,0.27841746,38607.0,38601.0,0.0111]
[1643754963057,0.347277,38605.0,38601.0,0.0111]
[1643754963256,0.27841746,38604.0,38601.0,0.0111]
[1643754963456,0.36943026,38609.0,38601.0,0.0111]
[1643754963657,0.347277,38608.0,38601.0,0.0111]
[1643754964111,0.02194199,38607.0,38601.0,0.0111]
[1643754965009,0.02194199,38607.0,38602.0,0.00139576]
[1643754966010,0.00586867,38611.0,38601.0,0.0111]
[1643754966208,0.347277,38610.0,38603.0,0.00139574]
[1643754966611,0.00586867,38611.0,38603.0,0.00139574]
[1643754967217,0.00586867,38611.0,38601.0,0.0111]
[1643754967409,0.00586867,38611.0,38605.0,0.00139565]
[1643754968256,0.00586867,38611.0,38603.0,0.064741]
[1643754968457,0.00586867,38611.0,38606.0,0.00139561]
[1643754968757,0.24938348,38617.0,38606.0,0.00139561]
[1643754969356,0.24938348,38617.0,38607.0,0.064735]
[1643754969658,0.00043269,38610.0,38607.0,0.064735]
[1643754969864,0.00043269,38610.0,38608.0,0.005434]
[1643754970257,0.00043269,38610.0,38607.0,0.05]
[1643754970458,0.00043269,38610.0,38604.0,0.00558279]
[1643754970658,0.00043269,38610.0,38601.0,0.0111]
[1643754970857,0.00043269,38610.0,38605.0,0.00069783]
[1643754971311,0.00043269,38610.0,38601.0,0.00179783]
[1643754973306,0.00043269,38610.0,38603.0,0.00139223]
[1643754973906,0.00043269,38610.0,38599.0,0.05023041]
[1643754974106,0.00043269,38610.0,38599.0,0.00193618]
[1643754974707,0.00049688,38609.0,38599.0,0.00193618]
[1643754978153,0.00049688,38609.0,38601.0,0.00138534]
[1643754979203,0.00049688,38609.0,38602.0,0.005441]
[1643754979404,0.00049688,38609.0,38601.0,0.00138534]
[1643754980204,0.00032172,38609.0,38601.0,0.00138534]
[1643754980409,0.00032172,38609.0,38599.0,0.00193618]
[1643754980606,0.00032172,38609.0,38601.0,0.00138534]
[1643754980808,0.05,38607.0,38590.0,0.179508]
[1643754981012,0.44033374,38606.0,38590.0,0.05]
[1643754981206,0.10452082,38605.0,38590.0,0.05]
[1643754981406,0.71439275,38604.0,38590.0,0.05]
[1643754981913,1.365,38601.0,38581.0,0.01010562]
[1643754982111,0.1,38603.0,38566.0,0.05043553]
[1643754982112,0.25,38596.0,38578.0,0.0009234]
[1643754982310,0.4426248,38595.0,38578.0,0.0009234]
[1643754982554,1.365,38590.0,38578.0,0.0009234]
[1643754982752,1.365,38588.0,38578.0,0.0009234]
[1643754982957,2.14390333,38587.0,38585.0,1.23e-06]
[1643754983153,0.36305869,38586.0,38585.0,1.23e-06]
[1643754983356,0.09335233,38585.0,38576.0,0.22159695]
[1643754983555,0.09335233,38585.0,38551.0,1.50127233]
[1643754983556,0.09989781,38583.0,38551.0,1.2609507]
[1643754983755,0.03977891,38581.0,38564.0,0.0511]
[1643754983953,0.09735253,38579.0,38564.0,0.0511]
[1643754984154,0.09555233,38576.0,38564.0,0.0511]
[1643754984356,0.10022642,38574.0,38564.0,0.0511]
[1643754984553,0.0995797,38572.0,38564.0,0.0511]
[1643754984752,0.064831,38576.0,38564.0,0.0011]
[1643754984753,0.45277736,38571.0,38564.0,0.0011]
[1643754984955,0.27173472,38575.0,38564.0,0.0011]
[1643754985153,0.347277,38574.0,38564.0,0.0011]
[1643754985355,0.27173472,38573.0,38564.0,0.0011]
[1643754985558,0.09543787,38574.0,38564.0,0.0011]
[1643754985754,0.01804037,38575.0,38564.0,0.0011]
[1643754985955,0.25391131,38578.0,38564.0,0.0011]
[1643754986157,0.1212,38579.0,38564.0,0.0011]
[1643754986437,0.25436222,38581.0,38564.0,0.0011]
[1643754986438,0.25436229,38581.0,38564.0,0.0011]
[1643754986637,0.347277,38580.0,38564.0,0.0011]
[1643754986835,0.27173472,38579.0,38564.0,0.0011]
[1643754987034,0.00071588,38581.0,38564.0,0.0011]
[1643754987435,0.3746,38582.0,38564.0,0.0011]
[1643754987635,0.3746,38582.0,38572.0,0.00136217]
[1643754987839,0.00139683,38581.0,38572.0,0.00136217]
[1643754988635,0.00139683,38581.0,38566.0,0.00654949]
[1643754988835,0.3746,38582.0,38568.0,0.005498]
[1643754989036,0.3746,38582.0,38575.0,0.00136208]
[1643754989037,0.00139688,38581.0,38575.0,0.00136208]
[1643754989236,0.2680945,38581.0,38575.0,0.00136208]
[1643754989438,0.00139688,38581.0,38575.0,0.00136208]
[1643754989835,0.00139688,38581.0,38567.0,0.00654932]
[1643754989836,0.00026523,38577.0,38567.0,0.00654932]
[1643754990050,0.00026523,38577.0,38576.0,0.00136203]
[1643754990251,0.00026523,38577.0,38576.0,0.00685403]
[1643754990652,0.00026523,38577.0,38576.0,0.00136203]
[1643754990856,0.00026523,38577.0,38576.0,0.00685403]
[1643754991051,0.00026523,38577.0,38576.0,0.005492]
[1643754991253,0.00026523,38577.0,38575.0,0.00136208]
[1643754991552,0.00026523,38577.0,38576.0,0.105492]
[1643754991752,0.00026523,38577.0,38576.0,0.205492]
[1643754991951,0.00135902,38581.0,38576.0,0.205492]
[1643754992151,0.00135902,38581.0,38576.0,0.005492]
[1643754992355,0.03748,38586.0,38576.0,0.105492]
[1643754992554,0.03748,38586.0,38574.0,0.30880224]
[1643754992760,0.03748,38586.0,38577.0,0.064777]
[1643754993363,0.03748,38586.0,38578.0,0.29946978]
[1643754993563,0.03748,38586.0,38579.0,0.005484]
[1643754993817,0.00071605,38583.0,38579.0,0.15184568]
[1643754994010,0.00071605,38583.0,38582.0,0.1]
[1643754994211,0.00071605,38583.0,38582.0,0.155481]
[1643754994412,0.00071605,38583.0,38582.0,0.305481]
[1643754994610,0.03748,38586.0,38583.0,0.1]
[1643754994611,0.00072885,38586.0,38583.0,0.1]
[1643754994810,0.00072885,38586.0,38584.0,0.005477]
[1643754995410,0.26573404,38604.0,38584.0,0.005477]
[1643754995613,0.26573404,38604.0,38583.0,0.1]
[1643754996612,0.26573404,38604.0,38584.0,0.05]
[1643754996813,0.26573404,38604.0,38583.0,0.1]
[1643754997414,0.26573404,38604.0,38585.0,0.064764]
[1643754997649,0.26573404,38604.0,38583.0,0.1]
[1643754998052,0.26573404,38604.0,38584.0,0.05]
[1643754998660,0.00139911,38596.0,38584.0,0.05]
[1643754998853,0.00139911,38596.0,38585.0,0.005464]
[1643754999052,0.00139911,38596.0,38585.0,0.070228]
[1643754999251,0.00139911,38596.0,38585.0,0.120228]
[1643754999452,0.26573404,38604.0,38585.0,0.120228]
[1643754999653,0.00024553,38603.0,38585.0,0.114764]
[1643754999855,0.00139918,38592.0,38585.0,0.114764]
[1643755000055,0.00139918,38592.0,38586.0,0.005463]
[1643755000756,0.00024553,38603.0,38586.0,0.005463]
[1643755000957,0.0013992,38591.0,38585.0,0.114764]
[1643755001165,0.0013992,38591.0,38586.0,0.04698533]
[1643755001408,0.0013992,38591.0,38586.0,0.005463]
[1643755002007,0.00024553,38603.0,38586.0,0.005463]
[1643755002205,0.00139921,38590.0,38585.0,0.214764]
[1643755002404,0.00139921,38590.0,38586.0,0.005463]
[1643755003006,0.00139921,38590.0,38584.0,0.1]
[1643755003206,0.00024553,38603.0,38585.0,0.005472]
[1643755003408,0.00024553,38603.0,38584.0,0.1]
[1643755003409,0.00139922,38590.0,38584.0,0.1]
[1643755003606,0.00139922,38590.0,38585.0,0.005464]
[1643755004205,0.00139922,38590.0,38584.0,0.005473]
[1643755004406,0.32878643,38603.0,38584.0,0.005473]
[1643755004607,0.32878643,38603.0,38583.0,0.1]
[1643755004608,0.00139923,38589.0,38583.0,0.1]
[1643755004807,0.00139923,38589.0,38584.0,0.005465]
[1643755005553,0.00024966,38590.0,38584.0,0.005465]
[1643755005753,0.00139925,38588.0,38584.0,0.005465]
[1643755006154,0.00139925,38588.0,38584.0,0.055465]
[1643755006359,0.00139925,38588.0,38584.0,0.005465]
[1643755006553,0.00139925,38588.0,38584.0,0.055465]
[1643755006755,0.00024966,38590.0,38584.0,0.055465]
[1643755006955,0.00139926,38588.0,38584.0,0.055465]
[1643755007556,0.29094768,38603.0,38585.0,0.1]
[1643755007759,0.29094768,38603.0,38585.0,0.15]
[1643755007956,0.29094768,38603.0,38585.0,0.1]
[1643755008157,0.29094768,38603.0,38585.0,0.15]
[1643755008356,0.01847793,38593.0,38585.0,0.1]
[1643755008556,0.01847793,38593.0,38586.0,0.005463]
[1643755009302,0.00071832,38591.0,38586.0,0.005463]
[1643755009502,0.0002541,38587.0,38586.0,0.005463]
[1643755009707,0.00050387,38587.0,38586.0,0.005463]
[1643755010303,0.00050387,38587.0,38586.0,0.105463]
[1643755010906,0.01520414,38593.0,38586.0,0.105463]
[1643755012307,0.01520414,38593.0,38586.0,0.005463]
[1643755012952,0.01520414,38593.0,38585.0,0.114764]
[1643755013150,0.01520414,38593.0,38586.0,0.00547]
[1643755013351,0.01520414,38593.0,38585.0,0.114764]
[1643755013549,0.01520414,38593.0,38586.0,0.00547]
[1643755014153,0.00071571,38592.0,38586.0,0.00547]
[1643755014360,0.00036326,38587.0,38586.0,0.00547]
[1643755018903,0.00014029,38587.0,38586.0,0.00547]
[1643755019607,0.0006894,38587.0,38586.0,0.00547]
[1643755020150,0.0006894,38587.0,38586.0,0.10547]
[1643755021149,0.0006894,38587.0,38586.0,0.20547]
[1643755021351,0.0006894,38587.0,38586.0,0.30547]
[1643755023153,0.0006894,38587.0,38586.0,0.40547]
[1643755023555,0.0006894,38587.0,38586.0,0.40310209]
[1643755024411,0.0006894,38587.0,38586.0,0.60310209]
[1643755024412,0.00046598,38587.0,38586.0,0.60310209]
[1643755024612,0.00038887,38587.0,38586.0,0.60310209]
[1643755024914,0.00030895,38587.0,38586.0,0.60310209]
[1643755025111,0.05,38590.0,38586.0,0.60310209]
[1643755025415,0.05,38590.0,38588.0,0.129493]
[1643755026413,0.00124698,38592.0,38589.0,0.1]
[1643755026812,0.00124698,38592.0,38589.0,0.2]
[1643755027014,0.00124698,38592.0,38589.0,0.3]
[1643755028456,0.2676496,38604.0,38589.0,0.3]
[1643755028657,0.15129623,38611.0,38592.0,0.064742]
[1643755028861,0.15268549,38611.0,38593.0,0.28675221]
[1643755029057,0.13724886,38608.0,38594.0,0.129483]
[1643755029259,0.13724886,38608.0,38594.0,0.179483]
[1643755029657,0.15425123,38611.0,38594.0,0.179483]
[1643755029857,0.15134034,38611.0,38594.0,0.179483]
[1643755030062,0.13616295,38608.0,38594.0,0.46423364]
[1643755030257,0.13689419,38608.0,38595.0,0.1]
[1643755030461,0.15055643,38611.0,38595.0,0.1]
[1643755030658,0.14570416,38610.0,38595.0,0.15]
[1643755030859,0.14620456,38611.0,38595.0,0.15]
[1643755031319,0.14809603,38611.0,38595.0,0.15]
[1643755031608,0.1169,38612.0,38596.0,0.29124963]
[1643755031809,0.1169,38612.0,38597.0,0.064737]
[1643755032210,0.1169,38612.0,38597.0,0.114737]
[1643755032619,0.23311128,38608.0,38597.0,0.114737]
[1643755033211,0.1169,38612.0,38597.0,0.114737]
[1643755033409,0.24764255,38608.0,38597.0,0.114153]
[1643755034412,0.00025336,38598.0,38597.0,0.11461324]
[1643755035052,0.00025336,38598.0,38597.0,0.21461324]
[1643755035256,0.00025336,38598.0,38597.0,0.31461324]
[1643755035655,0.00025336,38598.0,38597.0,0.61795727]
[1643755035855,0.00025336,38598.0,38597.0,0.59724227]
[1643755036055,0.00025336,38598.0,38597.0,0.31461324]
[1643755036357,0.10025604,38599.0,38598.0,0.2]
[1643755036555,0.10025604,38599.0,38598.0,0.58674953]
[1643755037057,0.3793,38615.0,38604.0,0.064729]
[1643755037654,0.00140148,38611.0,38604.0,0.064729]
[1643755038257,0.00140148,38611.0,38605.0,0.064723]
[1643755038456,0.00140148,38611.0,38605.0,0.28324325]
[1643755038655,0.3793,38615.0,38605.0,0.28324325]
[1643755038918,0.00140151,38610.0,38605.0,0.38324325]
[1643755039416,0.00140151,38610.0,38605.0,0.39359825]
[1643755039816,0.3793,38615.0,38605.0,0.38324325]
[1643755040017,0.00140152,38609.0,38606.0,0.06472]
[1643755040217,1.3812,38624.0,38609.0,0.1]
[1643755040522,0.3797,38623.0,38610.0,0.30188448]
[1643755040718,0.3797,38623.0,38611.0,0.1]
[1643755040918,0.3797,38623.0,38610.0,0.27932105]
[1643755041118,0.3797,38623.0,38609.0,0.444124]
[1643755041119,0.22095183,38622.0,38609.0,0.444124]
[1643755041321,0.22095183,38622.0,38613.0,0.064712]
[1643755041518,0.3797,38623.0,38613.0,0.064712]
[1643755041918,0.21296713,38622.0,38613.0,0.064712]
[1643755042118,0.2123479,38622.0,38613.0,0.064712]
[1643755042317,0.3797,38623.0,38613.0,0.05998961]
[1643755042754,0.01,38629.0,38613.0,0.47707116]
[1643755042952,0.01,38629.0,38620.0,0.06351386]
[1643755044353,0.01,38629.0,38622.0,0.064699]
[1643755044552,0.00020778,38623.0,38622.0,0.064699]
[1643755044953,0.01,38629.0,38622.0,0.064699]
[1643755045354,0.01,38629.0,38623.0,0.28291969]
[1643755045553,0.01,38629.0,38622.0,0.064699]
[1643755045761,0.01,38629.0,38623.0,0.04496167]
[1643755045954,0.00140369,38628.0,38624.0,0.03436004]
[1643755046155,0.00140369,38628.0,38625.0,0.03917133]
[1643755046403,0.00140369,38628.0,38626.0,0.0992263]
[1643755046604,0.00140369,38628.0,38626.0,0.064688]
[1643755047003,0.01,38629.0,38626.0,0.064688]
[1643755047202,0.06112196,38629.0,38626.0,0.064688]
[1643755047603,0.06112196,38629.0,38626.0,0.075039]
[1643755047805,0.06112196,38629.0,38626.0,0.064688]
[1643755048203,0.06,38629.0,38626.0,0.064688]
[1643755048412,0.06112196,38629.0,38626.0,0.064688]
[1643755048605,0.06112196,38629.0,38626.0,0.164688]
[1643755049304,0.06,38629.0,38626.0,0.164688]
[1643755049506,0.00022065,38627.0,38626.0,0.16499979]
[1643755049705,0.00022065,38627.0,38626.0,0.06499979]
[1643755049905,0.00022065,38627.0,38626.0,0.26499979]
[1643755050755,0.00022065,38627.0,38626.0,0.36499979]
[1643755051859,0.00022065,38627.0,38626.0,0.46499979]
[1643755052057,0.05,38627.0,38626.0,0.46499979]
[1643755052454,0.06022423,38629.0,38627.0,0.2]
[1643755052858,0.06022423,38629.0,38628.0,0.05]
[1643755053258,0.06022423,38629.0,38628.0,0.43384028]
[1643755053461,0.06022423,38629.0,38628.0,0.15]
[1643755053657,0.3789,38639.0,38631.0,0.064679]
[1643755053908,0.3789,38639.0,38631.0,0.06349767]
[1643755055408,0.3789,38639.0,38631.0,0.12384567]
[1643755055609,0.00071439,38637.0,38631.0,0.11349767]
[1643755055809,0.00071439,38637.0,38632.0,0.05]
[1643755056013,0.32372969,38639.0,38632.0,0.05]
[1643755056213,0.32372969,38639.0,38631.0,0.21349767]
[1643755056612,0.32372969,38639.0,38632.0,0.04610058]
[1643755056812,0.32372969,38639.0,38633.0,0.03533675]
[1643755057010,0.32372969,38639.0,38635.0,0.06468]
[1643755059059,0.32372969,38639.0,38635.0,0.075029]
[1643755059454,0.32372969,38639.0,38635.0,0.06468]
[1643755059655,0.00017506,38636.0,38635.0,0.06468]
[1643755061500,0.32372969,38639.0,38633.0,0.1202059]
[1643755061699,0.32513551,38639.0,38633.0,0.0702059]
[1643755061898,0.32513551,38639.0,38633.0,0.1702059]
[1643755062099,0.32513551,38639.0,38633.0,0.2348819]
[1643755062302,0.32513551,38639.0,38633.0,0.214866]
[1643755062500,0.32372969,38639.0,38635.0,0.06468]
[1643755062900,0.32513552,38639.0,38635.0,0.06468]
[1643755063100,0.32513552,38639.0,38635.0,0.075028]
[1643755063300,0.32513552,38639.0,38635.0,0.125028]
[1643755063501,0.32513552,38639.0,38636.0,0.129346]
[1643755063703,0.32372969,38639.0,38637.0,0.05]
[1643755064007,0.32513553,38639.0,38637.0,0.05]
[1643755064202,0.32513553,38639.0,38638.0,0.04896705]
[1643755064801,0.00140584,38639.0,38638.0,0.04896705]
[1643755065053,0.3988,38648.0,38638.0,0.04896705]
[1643755065354,0.3988,38648.0,38641.0,0.064669]
[1643755065754,0.3988,38648.0,38641.0,0.004262]
[1643755066355,0.00140572,38646.0,38641.0,0.004262]
[1643755067157,0.00140572,38646.0,38641.0,0.014609]
[1643755067357,0.3988,38648.0,38641.0,0.014609]
[1643755067656,0.3988,38648.0,38641.0,0.004262]
[1643755068903,0.00140722,38646.0,38641.0,0.004262]
[1643755069701,0.00017409,38647.0,38641.0,0.004262]
[1643755069902,0.00140723,38645.0,38641.0,0.004262]
[1643755070301,0.00140723,38645.0,38641.0,0.04132416]
[1643755070503,0.00140723,38645.0,38641.0,0.03632416]
[1643755070701,0.00140723,38645.0,38641.0,0.004262]
[1643755071103,0.00140724,38645.0,38641.0,0.014609]
[1643755071306,0.00140724,38645.0,38641.0,0.06318544]
[1643755071502,0.00140724,38645.0,38641.0,0.05951273]
[1643755071902,0.00140724,38645.0,38641.0,0.014609]
[1643755072103,0.00017409,38647.0,38641.0,0.064609]
[1643755072554,0.00140724,38645.0,38641.0,0.064609]
[1643755072950,0.00140724,38645.0,38642.0,0.03388347]
[1643755073150,0.00140724,38645.0,38641.0,0.064609]
[1643755073350,0.00017409,38647.0,38643.0,0.129331]
[1643755073550,0.00140723,38645.0,38643.0,0.179331]
[1643755074355,0.00140723,38645.0,38644.0,0.129332]
[1643755074551,0.00017631,38645.0,38644.0,0.129332]
[1643755074751,0.00017631,38645.0,38644.0,0.229332]
[1643755074953,0.00017631,38645.0,38644.0,0.129332]
[1643755077321,0.00017631,38645.0,38639.0,0.1]
[1643755077322,0.00017631,38645.0,38639.0,0.129353]
[1643755077515,0.05017631,38645.0,38630.0,0.30524184]
[1643755077714,0.25524184,38644.0,38630.0,0.05]
[1643755078113,0.1,38642.0,38630.0,0.05]
[1643755078314,0.25524184,38641.0,38630.0,0.05]
[1643755078514,0.00140732,38640.0,38631.0,0.12938]
[1643755078718,0.2,38639.0,38631.0,0.11207]
[1643755078914,0.2,38639.0,38632.0,0.01035]
[1643755078915,0.25524184,38638.0,38632.0,0.01035]
[1643755079313,0.25524184,38638.0,38628.0,0.064702]
[1643755079517,0.25524184,38638.0,38623.0,0.00625616]
[1643755079713,0.25524184,38638.0,38622.0,0.05695596]
[1643755079714,0.37424184,38638.0,38622.0,0.05695596]
[1643755080155,0.1,38637.0,38622.0,0.05695596]
[1643755080354,0.35165941,38636.0,38622.0,0.05695596]
[1643755080559,0.45165941,38636.0,38622.0,0.05]
[1643755080865,0.1,38633.0,38622.0,0.00695601]
[1643755081060,0.53801061,38632.0,38616.0,0.0031]
[1643755081263,1.29261061,38632.0,38616.0,0.0031]
[1643755081457,0.2188,38631.0,38616.0,0.0031]
[1643755081659,0.1,38627.0,38616.0,0.0031]
[1643755081958,0.1,38627.0,38610.0,0.0011]
[1643755081959,0.1,38622.0,38610.0,0.0011]
[1643755082162,0.26101587,38621.0,38610.0,0.0011]
[1643755082758,0.26101587,38621.0,38612.0,0.010356]
[1643755083162,0.26101587,38621.0,38615.0,0.00135666]
[1643755084202,0.28102038,38621.0,38612.0,0.010356]
[1643755084406,0.28102038,38621.0,38616.0,0.00135663]
[1643755085405,0.28102038,38621.0,38612.0,0.010356]
[1643755085605,0.28102038,38621.0,38617.0,0.00135661]
[1643755086607,0.3029208,38621.0,38613.0,0.066727]
[1643755086808,0.3029208,38621.0,38617.0,0.00124714]
[1643755087652,0.347283,38620.0,38617.0,0.00124714]
[1643755087851,0.2229872,38619.0,38613.0,0.002]
[1643755088052,0.2229872,38619.0,38617.0,0.00124714]
[1643755089054,0.2229872,38619.0,38613.0,0.002]
[1643755089055,0.347283,38618.0,38613.0,0.002]
[1643755089258,0.22374415,38617.0,38616.0,0.00124716]
[1643755089455,0.1,38617.0,38616.0,0.00124716]
[1643755089959,0.31519323,38617.0,38616.0,0.00124716]
[1643755090155,0.31519323,38617.0,38613.0,0.002]
[1643755090356,0.1,38617.0,38615.0,0.00124719]
[1643755091410,0.1,38617.0,38613.0,0.002]
[1643755091611,0.1,38617.0,38614.0,0.00127445]
[1643755091809,0.20647729,38616.0,38614.0,0.00127445]
[1643755092009,0.1,38617.0,38614.0,0.00127445]
[1643755092613,0.20920472,38616.0,38613.0,0.066727]
[1643755092809,0.1,38617.0,38614.0,0.00127446]
[1643755093809,0.1,38617.0,38613.0,0.066727]
[1643755094009,0.1,38617.0,38614.0,0.00127446]
[1643755094609,0.21529971,38616.0,38614.0,0.00127446]
[1643755095052,0.21529971,38616.0,38613.0,0.066727]
[1643755095256,0.21529971,38616.0,38613.0,0.06799277]
[1643755095257,0.00017027,38616.0,38613.0,0.06799277]
[1643755096158,0.00017027,38616.0,38613.0,0.066727]
[1643755096353,0.00017027,38616.0,38613.0,0.06799278]
[1643755097455,0.00017027,38616.0,38613.0,0.066727]
[1643755097654,0.00017027,38616.0,38613.0,0.06799278]
[1643755097858,9.012e-05,38616.0,38613.0,0.06799278]
[1643755098456,9.012e-05,38616.0,38613.0,0.07834678]
[1643755098655,9.012e-05,38616.0,38613.0,0.077081]
[1643755098908,9.012e-05,38616.0,38613.0,0.11799473]
[1643755099108,9.012e-05,38616.0,38613.0,0.06799473]
[1643755099506,0.00017031,38616.0,38613.0,0.06799473]
[1643755099907,0.00017031,38616.0,38613.0,0.066727]
[1643755100106,0.00017031,38616.0,38613.0,0.13271073]
[1643755100308,0.00046809,38617.0,38613.0,0.18271073]
[1643755101108,0.00046809,38617.0,38613.0,0.181443]
[1643755101309,0.00046809,38617.0,38613.0,0.18271072]
[1643755101708,0.01846609,38617.0,38613.0,0.18271072]
[1643755102310,0.01846609,38617.0,38613.0,0.381963]
[1643755102563,0.01846609,38617.0,38613.0,0.39358428]
[1643755102762,0.01846609,38617.0,38615.0,0.129426]
[1643755103167,0.01846609,38617.0,38615.0,0.179426]
[1643755104365,0.01846609,38617.0,38615.0,0.22322808]
[1643755104565,0.00015946,38616.0,38614.0,0.19956408]
[1643755104765,0.00015946,38616.0,38614.0,0.24099596]
[1643755105567,0.00015946,38616.0,38615.0,0.129426]
[1643755105768,0.01840241,38617.0,38616.0,0.1]
[1643755105965,0.01832405,38617.0,38616.0,0.1]
[1643755106165,0.01832405,38617.0,38615.0,0.179426]
[1643755106417,0.01832405,38617.0,38616.0,0.010353]
[1643755106819,0.01832405,38617.0,38615.0,0.179426]
[1643755107217,0.01832405,38617.0,38615.0,0.22895587]
[1643755107416,0.01832405,38617.0,38616.0,0.26717703]
[1643755107816,0.01832405,38617.0,38616.0,0.1]
[1643755108219,0.39636668,38628.0,38620.0,0.064701]
[1643755108425,0.00117774,38624.0,38620.0,0.064701]
[1643755109518,0.1133,38628.0,38620.0,0.064701]
[1643755109718,0.1133,38628.0,38620.0,0.32766636]
[1643755109719,0.00117786,38624.0,38620.0,0.32766636]
[1643755109918,0.00117786,38624.0,38620.0,0.06596823]
[1643755110558,0.01,38624.0,38620.0,0.075053]
[1643755110757,0.01117786,38624.0,38620.0,0.12632023]
[1643755110962,0.01117786,38624.0,38620.0,0.11596823]
[1643755111159,0.01095593,38624.0,38620.0,0.11596823]
[1643755111357,0.01095593,38624.0,38620.0,0.06596823]
[1643755111758,0.00977807,38624.0,38620.0,0.064701]
[1643755111959,0.01095593,38624.0,38621.0,0.064701]
[1643755112159,0.01095593,38624.0,38620.0,0.06596823]
[1643755112358,0.01095593,38624.0,38620.0,0.06615823]
[1643755113060,0.00977807,38624.0,38620.0,0.064891]
[1643755113259,0.00977807,38624.0,38620.0,0.06615823]
[1643755113260,0.01095593,38624.0,38620.0,0.06615823]
[1643755114108,0.01087801,38624.0,38620.0,0.06615823]
[1643755114311,0.00970015,38624.0,38620.0,0.064891]
[1643755114608,0.00015702,38623.0,38620.0,0.07651023]
[1643755114807,0.00015702,38623.0,38620.0,0.06615823]
[1643755115407,0.00015702,38623.0,38620.0,0.064891]
[1643755115608,0.00015702,38623.0,38620.0,0.06615824]
[1643755116407,0.01113239,38624.0,38621.0,0.2]
[1643755116607,0.00995455,38624.0,38621.0,0.2]
[1643755116807,0.0110791,38624.0,38621.0,0.25]
[1643755117008,0.0110791,38624.0,38621.0,0.51320021]
[1643755117210,0.0110791,38624.0,38622.0,0.00625615]
[1643755117857,0.00995455,38624.0,38622.0,0.00625615]
[1643755119657,0.0001405,38623.0,38622.0,0.00625615]
[1643755120459,0.0001405,38623.0,38622.0,0.27339433]
[1643755120859,0.0001405,38623.0,38622.0,0.37339433]
[1643755121803,0.0111041,38624.0,38622.0,0.37339433]
[1643755121804,0.01102184,38624.0,38622.0,0.37339433]
[1643755122004,0.01102184,38624.0,38622.0,0.10625615]
[1643755122205,0.01094375,38624.0,38622.0,0.00625615]
[1643755122404,0.01094375,38624.0,38622.0,0.01660615]
[1643755122605,0.01094375,38624.0,38622.0,0.21700615]
[1643755122606,0.0097942,38624.0,38622.0,0.21700615]
[1643755122806,0.0097942,38624.0,38622.0,0.31700615]
[1643755123006,0.0097942,38624.0,38622.0,0.58210206]
[1643755123407,0.0097942,38624.0,38622.0,0.57175206]
[1643755124010,0.0097942,38624.0,38622.0,0.62175206]
[1643755124312,0.0097942,38624.0,38622.0,0.35665615]
[1643755124509,0.00018121,38623.0,38622.0,0.35687565]
[1643755126058,0.00018121,38623.0,38622.0,0.35187565]
[1643755126257,0.00018121,38623.0,38622.0,0.22735715]
[1643755126658,0.00018121,38623.0,38622.0,0.20665615]
[1643755127358,0.01084301,38624.0,38623.0,0.2]
[1643755127359,0.00965777,38624.0,38623.0,0.2]
[1643755127558,0.00965777,38624.0,38623.0,0.25]
[1643755127760,0.0108012,38624.0,38623.0,0.35]
[1643755127958,0.0108012,38624.0,38623.0,0.35625615]
[1643755128564,0.00965777,38624.0,38623.0,0.35625615]
[1643755130407,0.00957926,38624.0,38623.0,0.41586372]
[1643755130608,0.00957926,38624.0,38623.0,0.40551272]
[1643755130809,0.00957926,38624.0,38623.0,0.25625615]